{"text_format":"1","workbook":"xlsx","n_sheets":12,"sheets":["Januar","Februar","März","April","Mai","Juni","Juli","August","September","Oktober","November","Dezember"],"not_rendered":{"charts":0,"images":0,"macros":1,"external_links":0,"defined_names":12,"comments":0,"pivot_tables":0},"unopened":[],"bounds":{"document_bytes":16777216,"sheet_cells":100000,"rows_first":2000,"rows_last":500,"rows_between":2000,"halvings":0,"cell_chars":16384,"cell_head_chars":4096},"cells_cut":0,"cells_raw":0,"read":"whole","date_system":"1900"}

{"sheet":"Januar","index":0,"n_rows":139,"n_cols":7,"rows_kept":139,"cut":false,"hidden":false,"merged":[]}
["Kundenname",null,null,null,null,null,"Fiechter Treuhand AG"]
["Kassabuch  ",null,null,null,null,null,"Januar"]
["Datum","Bezeichnung","Konto","MWST","Einnahmen","Ausgaben","Saldo"]
[null,"Saldovortrag",null,null,null,null,100]
[null,null,null,null,null,null,{"$f":"G4+E5-F5","v":100}]
[null,null,null,null,null,null,{"$f":"G5+E6-F6","v":100}]
[null,null,null,null,null,null,100]
[null,null,null,null,null,null,100]
[null,null,null,null,null,null,100]
[null,null,null,null,null,null,{"$f":"G9+E10-F10","v":100}]
[null,null,null,null,null,null,100]
[null,null,null,null,null,null,100]
[null,null,null,null,null,null,100]
[null,null,null,null,null,null,100]
[null,null,null,null,null,null,100]
[null,null,null,null,null,null,100]
[null,null,null,null,null,null,100]
[null,null,null,null,null,null,100]
[null,null,null,null,null,null,100]
[null,null,null,null,null,null,100]
[null,null,null,null,null,null,100]
[null,null,null,null,null,null,100]
[null,null,null,null,null,null,100]
[null,null,null,null,null,null,100]
[null,null,null,null,null,null,100]
[null,null,null,null,null,null,100]
[null,null,null,null,null,null,100]
[null,null,null,null,null,null,100]
[null,null,null,null,null,null,100]
[null,null,null,null,null,null,100]
[null,null,null,null,null,null,100]
[null,null,null,null,null,null,100]
[null,null,null,null,null,null,100]
[null,null,null,null,null,null,100]
[null,null,null,null,null,null,100]
[null,null,null,null,null,null,100]
[null,null,null,null,null,null,100]
[null,null,null,null,null,null,100]
[null,null,null,null,null,null,100]
[null,null,null,null,null,null,100]
[null,null,null,null,null,null,100]
[null,null,null,null,null,null,100]
[null,null,null,null,null,null,100]
[null,null,null,null,null,null,100]
[null,null,null,null,null,null,100]
[null,null,null,null,null,null,100]
[null,null,null,null,null,null,100]
[null,null,null,null,null,null,100]
[null,null,null,null,null,null,100]
[null,null,null,null,null,null,100]
[null,null,null,null,null,null,100]
[null,null,null,null,null,null,100]
[null,null,null,null,null,null,100]
[null,null,null,null,null,null,100]
[null,null,null,null,null,null,100]
[null,null,null,null,null,null,100]
[null,null,null,null,null,null,100]
[null,null,null,null,null,null,100]
[null,null,null,null,null,null,100]
[null,null,null,null,null,null,100]
[null,null,null,null,null,null,100]
[null,null,null,null,null,null,100]
[null,null,null,null,null,null,100]
[null,null,null,null,null,null,100]
[null,null,null,null,null,null,100]
[null,null,null,null,null,null,100]
[null,null,null,null,null,null,100]
[null,null,null,null,null,null,100]
[null,null,null,null,null,null,100]
[null,null,null,null,null,null,{"$f":"G69+E70-F70","v":100}]
[null,null,null,null,null,null,100]
[null,null,null,null,null,null,100]
[null,null,null,null,null,null,100]
[null,null,null,null,null,null,100]
[null,null,null,null,null,null,100]
[null,null,null,null,null,null,100]
[null,null,null,null,null,null,100]
[null,null,null,null,null,null,100]
[null,null,null,null,null,null,100]
[null,null,null,null,null,null,100]
[null,null,null,null,null,null,100]
[null,null,null,null,null,null,100]
[null,null,null,null,null,null,100]
[null,null,null,null,null,null,100]
[null,null,null,null,null,null,100]
[null,null,null,null,null,null,100]
[null,null,null,null,null,null,100]
[null,null,null,null,null,null,100]
[null,null,null,null,null,null,100]
[null,null,null,null,null,null,100]
[null,null,null,null,null,null,100]
[null,null,null,null,null,null,100]
[null,null,null,null,null,null,100]
[null,null,null,null,null,null,100]
[null,null,null,null,null,null,100]
[null,null,null,null,null,null,100]
[null,null,null,null,null,null,100]
[null,null,null,null,null,null,100]
[null,null,null,null,null,null,100]
[null,null,null,null,null,null,100]
[null,null,null,null,null,null,100]
[null,null,null,null,null,null,100]
[null,null,null,null,null,null,100]
[null,null,null,null,null,null,100]
[null,null,null,null,null,null,100]
[null,null,null,null,null,null,100]
[null,null,null,null,null,null,100]
[null,null,null,null,null,null,100]
[null,null,null,null,null,null,100]
[null,null,null,null,null,null,100]
[null,null,null,null,null,null,100]
[null,null,null,null,null,null,100]
[null,null,null,null,null,null,100]
[null,null,null,null,null,null,100]
[null,null,null,null,null,null,100]
[null,null,null,null,null,null,100]
[null,null,null,null,null,null,100]
[null,null,null,null,null,null,100]
[null,null,null,null,null,null,100]
[null,null,null,null,null,null,100]
[null,null,null,null,null,null,100]
[null,null,null,null,null,null,100]
[null,null,null,null,null,null,100]
[null,null,null,null,null,null,100]
[null,null,null,null,null,null,100]
[null,null,null,null,null,null,100]
[null,null,null,null,null,null,100]
[null,null,null,null,null,null,100]
[null,null,null,null,null,null,100]
[null,null,null,null,null,null,100]
[null,null,null,null,null,null,100]
[null,null,null,null,null,null,100]
[null,null,null,null,null,null,100]
[null,null,null,null,null,null,{"$f":"G133+E134-F134","v":100}]
[null,null,null,null,null,null,100]
[null,null,null,null,null,null,100]
[null,null,null,null,null,null,100]
[null,null,null,null,null,null,100]
[null,"Saldo",null,null,null,null,{"$f":"G138+E139-F139","v":100}]

{"sheet":"Februar","index":1,"n_rows":139,"n_cols":7,"rows_kept":139,"cut":false,"hidden":false,"merged":[]}
[{"$f":"Januar!A1","v":"Kundenname"},null,null,null,null,null,"Fiechter Treuhand AG"]
["Kassabuch  ",null,null,null,null,null,"Februar"]
["Datum","Bezeichnung","Konto","MWST","Einnahmen","Ausgaben","Saldo"]
[null,"Saldovortrag",null,null,null,null,{"$f":"Januar!G139","v":100}]
[null,null,null,null,null,null,{"$f":"G4+E5-F5","v":100}]
[null,null,null,null,null,null,{"$f":"G5+E6-F6","v":100}]
[null,null,null,null,null,null,100]
[null,null,null,null,null,null,100]
[null,null,null,null,null,null,100]
[null,null,null,null,null,null,100]
[null,null,null,null,null,null,100]
[null,null,null,null,null,null,100]
[null,null,null,null,null,null,100]
[null,null,null,null,null,null,100]
[null,null,null,null,null,null,100]
[null,null,null,null,null,null,100]
[null,null,null,null,null,null,100]
[null,null,null,null,null,null,100]
[null,null,null,null,null,null,100]
[null,null,null,null,null,null,100]
[null,null,null,null,null,null,100]
[null,null,null,null,null,null,100]
[null,null,null,null,null,null,100]
[null,null,null,null,null,null,100]
[null,null,null,null,null,null,100]
[null,null,null,null,null,null,100]
[null,null,null,null,null,null,100]
[null,null,null,null,null,null,100]
[null,null,null,null,null,null,100]
[null,null,null,null,null,null,100]
[null,null,null,null,null,null,100]
[null,null,null,null,null,null,100]
[null,null,null,null,null,null,100]
[null,null,null,null,null,null,100]
[null,null,null,null,null,null,100]
[null,null,null,null,null,null,100]
[null,null,null,null,null,null,100]
[null,null,null,null,null,null,100]
[null,null,null,null,null,null,100]
[null,null,null,null,null,null,100]
[null,null,null,null,null,null,100]
[null,null,null,null,null,null,100]
[null,null,null,null,null,null,100]
[null,null,null,null,null,null,100]
[null,null,null,null,null,null,100]
[null,null,null,null,null,null,100]
[null,null,null,null,null,null,100]
[null,null,null,null,null,null,100]
[null,null,null,null,null,null,100]
[null,null,null,null,null,null,100]
[null,null,null,null,null,null,100]
[null,null,null,null,null,null,100]
[null,null,null,null,null,null,100]
[null,null,null,null,null,null,100]
[null,null,null,null,null,null,100]
[null,null,null,null,null,null,100]
[null,null,null,null,null,null,100]
[null,null,null,null,null,null,100]
[null,null,null,null,null,null,100]
[null,null,null,null,null,null,100]
[null,null,null,null,null,null,100]
[null,null,null,null,null,null,100]
[null,null,null,null,null,null,100]
[null,null,null,null,null,null,100]
[null,null,null,null,null,null,100]
[null,null,null,null,null,null,100]
[null,null,null,null,null,null,100]
[null,null,null,null,null,null,100]
[null,null,null,null,null,null,100]
[null,null,null,null,null,null,{"$f":"G69+E70-F70","v":100}]
[null,null,null,null,null,null,100]
[null,null,null,null,null,null,100]
[null,null,null,null,null,null,100]
[null,null,null,null,null,null,100]
[null,null,null,null,null,null,100]
[null,null,null,null,null,null,100]
[null,null,null,null,null,null,100]
[null,null,null,null,null,null,100]
[null,null,null,null,null,null,100]
[null,null,null,null,null,null,100]
[null,null,null,null,null,null,100]
[null,null,null,null,null,null,100]
[null,null,null,null,null,null,100]
[null,null,null,null,null,null,100]
[null,null,null,null,null,null,100]
[null,null,null,null,null,null,100]
[null,null,null,null,null,null,100]
[null,null,null,null,null,null,100]
[null,null,null,null,null,null,100]
[null,null,null,null,null,null,100]
[null,null,null,null,null,null,100]
[null,null,null,null,null,null,100]
[null,null,null,null,null,null,100]
[null,null,null,null,null,null,100]
[null,null,null,null,null,null,100]
[null,null,null,null,null,null,100]
[null,null,null,null,null,null,100]
[null,null,null,null,null,null,100]
[null,null,null,null,null,null,100]
[null,null,null,null,null,null,100]
[null,null,null,null,null,null,100]
[null,null,null,null,null,null,100]
[null,null,null,null,null,null,100]
[null,null,null,null,null,null,100]
[null,null,null,null,null,null,100]
[null,null,null,null,null,null,100]
[null,null,null,null,null,null,100]
[null,null,null,null,null,null,100]
[null,null,null,null,null,null,100]
[null,null,null,null,null,null,100]
[null,null,null,null,null,null,100]
[null,null,null,null,null,null,100]
[null,null,null,null,null,null,100]
[null,null,null,null,null,null,100]
[null,null,null,null,null,null,100]
[null,null,null,null,null,null,100]
[null,null,null,null,null,null,100]
[null,null,null,null,null,null,100]
[null,null,null,null,null,null,100]
[null,null,null,null,null,null,100]
[null,null,null,null,null,null,100]
[null,null,null,null,null,null,100]
[null,null,null,null,null,null,100]
[null,null,null,null,null,null,100]
[null,null,null,null,null,null,100]
[null,null,null,null,null,null,100]
[null,null,null,null,null,null,100]
[null,null,null,null,null,null,100]
[null,null,null,null,null,null,100]
[null,null,null,null,null,null,100]
[null,null,null,null,null,null,100]
[null,null,null,null,null,null,100]
[null,null,null,null,null,null,100]
[null,null,null,null,null,null,{"$f":"G133+E134-F134","v":100}]
[null,null,null,null,null,null,100]
[null,null,null,null,null,null,100]
[null,null,null,null,null,null,100]
[null,null,null,null,null,null,100]
[null,"Saldo",null,null,null,null,{"$f":"G138+E139-F139","v":100}]

{"sheet":"März","index":2,"n_rows":139,"n_cols":7,"rows_kept":139,"cut":false,"hidden":false,"merged":[]}
[{"$f":"Januar!A1","v":"Kundenname"},null,null,null,null,null,"Fiechter Treuhand AG"]
["Kassabuch  ",null,null,null,null,null,"März"]
["Datum","Bezeichnung","Konto","MWST","Einnahmen","Ausgaben","Saldo"]
[null,"Saldovortrag",null,null,null,null,{"$f":"Februar!G139","v":100}]
[null,null,null,null,null,null,{"$f":"G4+E5-F5","v":100}]
[null,null,null,null,null,null,{"$f":"G5+E6-F6","v":100}]
[null,null,null,null,null,null,100]
[null,null,null,null,null,null,100]
[null,null,null,null,null,null,100]
[null,null,null,null,null,null,100]
[null,null,null,null,null,null,100]
[null,null,null,null,null,null,100]
[null,null,null,null,null,null,100]
[null,null,null,null,null,null,100]
[null,null,null,null,null,null,100]
[null,null,null,null,null,null,100]
[null,null,null,null,null,null,100]
[null,null,null,null,null,null,100]
[null,null,null,null,null,null,100]
[null,null,null,null,null,null,100]
[null,null,null,null,null,null,100]
[null,null,null,null,null,null,100]
[null,null,null,null,null,null,100]
[null,null,null,null,null,null,100]
[null,null,null,null,null,null,100]
[null,null,null,null,null,null,100]
[null,null,null,null,null,null,100]
[null,null,null,null,null,null,100]
[null,null,null,null,null,null,100]
[null,null,null,null,null,null,100]
[null,null,null,null,null,null,100]
[null,null,null,null,null,null,100]
[null,null,null,null,null,null,100]
[null,null,null,null,null,null,100]
[null,null,null,null,null,null,100]
[null,null,null,null,null,null,100]
[null,null,null,null,null,null,100]
[null,null,null,null,null,null,100]
[null,null,null,null,null,null,100]
[null,null,null,null,null,null,100]
[null,null,null,null,null,null,100]
[null,null,null,null,null,null,100]
[null,null,null,null,null,null,100]
[null,null,null,null,null,null,100]
[null,null,null,null,null,null,100]
[null,null,null,null,null,null,100]
[null,null,null,null,null,null,100]
[null,null,null,null,null,null,100]
[null,null,null,null,null,null,100]
[null,null,null,null,null,null,100]
[null,null,null,null,null,null,100]
[null,null,null,null,null,null,100]
[null,null,null,null,null,null,100]
[null,null,null,null,null,null,100]
[null,null,null,null,null,null,100]
[null,null,null,null,null,null,100]
[null,null,null,null,null,null,100]
[null,null,null,null,null,null,100]
[null,null,null,null,null,null,100]
[null,null,null,null,null,null,100]
[null,null,null,null,null,null,100]
[null,null,null,null,null,null,100]
[null,null,null,null,null,null,100]
[null,null,null,null,null,null,100]
[null,null,null,null,null,null,100]
[null,null,null,null,null,null,100]
[null,null,null,null,null,null,100]
[null,null,null,null,null,null,100]
[null,null,null,null,null,null,100]
[null,null,null,null,null,null,{"$f":"G69+E70-F70","v":100}]
[null,null,null,null,null,null,100]
[null,null,null,null,null,null,100]
[null,null,null,null,null,null,100]
[null,null,null,null,null,null,100]
[null,null,null,null,null,null,100]
[null,null,null,null,null,null,100]
[null,null,null,null,null,null,100]
[null,null,null,null,null,null,100]
[null,null,null,null,null,null,100]
[null,null,null,null,null,null,100]
[null,null,null,null,null,null,100]
[null,null,null,null,null,null,100]
[null,null,null,null,null,null,100]
[null,null,null,null,null,null,100]
[null,null,null,null,null,null,100]
[null,null,null,null,null,null,100]
[null,null,null,null,null,null,100]
[null,null,null,null,null,null,100]
[null,null,null,null,null,null,100]
[null,null,null,null,null,null,100]
[null,null,null,null,null,null,100]
[null,null,null,null,null,null,100]
[null,null,null,null,null,null,100]
[null,null,null,null,null,null,100]
[null,null,null,null,null,null,100]
[null,null,null,null,null,null,100]
[null,null,null,null,null,null,100]
[null,null,null,null,null,null,100]
[null,null,null,null,null,null,100]
[null,null,null,null,null,null,100]
[null,null,null,null,null,null,100]
[null,null,null,null,null,null,100]
[null,null,null,null,null,null,100]
[null,null,null,null,null,null,100]
[null,null,null,null,null,null,100]
[null,null,null,null,null,null,100]
[null,null,null,null,null,null,100]
[null,null,null,null,null,null,100]
[null,null,null,null,null,null,100]
[null,null,null,null,null,null,100]
[null,null,null,null,null,null,100]
[null,null,null,null,null,null,100]
[null,null,null,null,null,null,100]
[null,null,null,null,null,null,100]
[null,null,null,null,null,null,100]
[null,null,null,null,null,null,100]
[null,null,null,null,null,null,100]
[null,null,null,null,null,null,100]
[null,null,null,null,null,null,100]
[null,null,null,null,null,null,100]
[null,null,null,null,null,null,100]
[null,null,null,null,null,null,100]
[null,null,null,null,null,null,100]
[null,null,null,null,null,null,100]
[null,null,null,null,null,null,100]
[null,null,null,null,null,null,100]
[null,null,null,null,null,null,100]
[null,null,null,null,null,null,100]
[null,null,null,null,null,null,100]
[null,null,null,null,null,null,100]
[null,null,null,null,null,null,100]
[null,null,null,null,null,null,100]
[null,null,null,null,null,null,100]
[null,null,null,null,null,null,{"$f":"G133+E134-F134","v":100}]
[null,null,null,null,null,null,100]
[null,null,null,null,null,null,100]
[null,null,null,null,null,null,100]
[null,null,null,null,null,null,100]
[null,"Saldo",null,null,null,null,100]

{"sheet":"April","index":3,"n_rows":139,"n_cols":7,"rows_kept":139,"cut":false,"hidden":false,"merged":[]}
[{"$f":"Januar!A1","v":"Kundenname"},null,null,null,null,null,"Fiechter Treuhand AG"]
["Kassabuch  ",null,null,null,null,null,"April"]
["Datum","Bezeichnung","Konto","MWST","Einnahmen","Ausgaben","Saldo"]
[null,"Saldovortrag",null,null,null,null,{"$f":"März!G139","v":100}]
[null,null,null,null,null,null,{"$f":"G4+E5-F5","v":100}]
[null,null,null,null,null,null,{"$f":"G5+E6-F6","v":100}]
[null,null,null,null,null,null,100]
[null,null,null,null,null,null,100]
[null,null,null,null,null,null,100]
[null,null,null,null,null,null,100]
[null,null,null,null,null,null,100]
[null,null,null,null,null,null,100]
[null,null,null,null,null,null,100]
[null,null,null,null,null,null,100]
[null,null,null,null,null,null,100]
[null,null,null,null,null,null,100]
[null,null,null,null,null,null,100]
[null,null,null,null,null,null,100]
[null,null,null,null,null,null,100]
[null,null,null,null,null,null,100]
[null,null,null,null,null,null,100]
[null,null,null,null,null,null,100]
[null,null,null,null,null,null,100]
[null,null,null,null,null,null,100]
[null,null,null,null,null,null,100]
[null,null,null,null,null,null,100]
[null,null,null,null,null,null,100]
[null,null,null,null,null,null,100]
[null,null,null,null,null,null,100]
[null,null,null,null,null,null,100]
[null,null,null,null,null,null,100]
[null,null,null,null,null,null,100]
[null,null,null,null,null,null,100]
[null,null,null,null,null,null,100]
[null,null,null,null,null,null,100]
[null,null,null,null,null,null,100]
[null,null,null,null,null,null,100]
[null,null,null,null,null,null,100]
[null,null,null,null,null,null,100]
[null,null,null,null,null,null,100]
[null,null,null,null,null,null,100]
[null,null,null,null,null,null,100]
[null,null,null,null,null,null,100]
[null,null,null,null,null,null,100]
[null,null,null,null,null,null,100]
[null,null,null,null,null,null,100]
[null,null,null,null,null,null,100]
[null,null,null,null,null,null,100]
[null,null,null,null,null,null,100]
[null,null,null,null,null,null,100]
[null,null,null,null,null,null,100]
[null,null,null,null,null,null,100]
[null,null,null,null,null,null,100]
[null,null,null,null,null,null,100]
[null,null,null,null,null,null,100]
[null,null,null,null,null,null,100]
[null,null,null,null,null,null,100]
[null,null,null,null,null,null,100]
[null,null,null,null,null,null,100]
[null,null,null,null,null,null,100]
[null,null,null,null,null,null,100]
[null,null,null,null,null,null,100]
[null,null,null,null,null,null,100]
[null,null,null,null,null,null,100]
[null,null,null,null,null,null,100]
[null,null,null,null,null,null,100]
[null,null,null,null,null,null,100]
[null,null,null,null,null,null,100]
[null,null,null,null,null,null,100]
[null,null,null,null,null,null,{"$f":"G69+E70-F70","v":100}]
[null,null,null,null,null,null,100]
[null,null,null,null,null,null,100]
[null,null,null,null,null,null,100]
[null,null,null,null,null,null,100]
[null,null,null,null,null,null,100]
[null,null,null,null,null,null,100]
[null,null,null,null,null,null,100]
[null,null,null,null,null,null,100]
[null,null,null,null,null,null,100]
[null,null,null,null,null,null,100]
[null,null,null,null,null,null,100]
[null,null,null,null,null,null,100]
[null,null,null,null,null,null,100]
[null,null,null,null,null,null,100]
[null,null,null,null,null,null,100]
[null,null,null,null,null,null,100]
[null,null,null,null,null,null,100]
[null,null,null,null,null,null,100]
[null,null,null,null,null,null,100]
[null,null,null,null,null,null,100]
[null,null,null,null,null,null,100]
[null,null,null,null,null,null,100]
[null,null,null,null,null,null,100]
[null,null,null,null,null,null,100]
[null,null,null,null,null,null,100]
[null,null,null,null,null,null,100]
[null,null,null,null,null,null,100]
[null,null,null,null,null,null,100]
[null,null,null,null,null,null,100]
[null,null,null,null,null,null,100]
[null,null,null,null,null,null,100]
[null,null,null,null,null,null,100]
[null,null,null,null,null,null,100]
[null,null,null,null,null,null,100]
[null,null,null,null,null,null,100]
[null,null,null,null,null,null,100]
[null,null,null,null,null,null,100]
[null,null,null,null,null,null,100]
[null,null,null,null,null,null,100]
[null,null,null,null,null,null,100]
[null,null,null,null,null,null,100]
[null,null,null,null,null,null,100]
[null,null,null,null,null,null,100]
[null,null,null,null,null,null,100]
[null,null,null,null,null,null,100]
[null,null,null,null,null,null,100]
[null,null,null,null,null,null,100]
[null,null,null,null,null,null,100]
[null,null,null,null,null,null,100]
[null,null,null,null,null,null,100]
[null,null,null,null,null,null,100]
[null,null,null,null,null,null,100]
[null,null,null,null,null,null,100]
[null,null,null,null,null,null,100]
[null,null,null,null,null,null,100]
[null,null,null,null,null,null,100]
[null,null,null,null,null,null,100]
[null,null,null,null,null,null,100]
[null,null,null,null,null,null,100]
[null,null,null,null,null,null,100]
[null,null,null,null,null,null,100]
[null,null,null,null,null,null,100]
[null,null,null,null,null,null,100]
[null,null,null,null,null,null,{"$f":"G133+E134-F134","v":100}]
[null,null,null,null,null,null,100]
[null,null,null,null,null,null,100]
[null,null,null,null,null,null,100]
[null,null,null,null,null,null,100]
[null,"Saldo",null,null,null,null,100]

{"sheet":"Mai","index":4,"n_rows":139,"n_cols":7,"rows_kept":139,"cut":false,"hidden":false,"merged":[]}
[{"$f":"Januar!A1","v":"Kundenname"},null,null,null,null,null,"Fiechter Treuhand AG"]
["Kassabuch  ",null,null,null,null,null,"Mai"]
["Datum","Bezeichnung","Konto","MWST","Einnahmen","Ausgaben","Saldo"]
[null,"Saldovortrag",null,null,null,null,{"$f":"April!G139","v":100}]
[null,null,null,null,null,null,{"$f":"G4+E5-F5","v":100}]
[null,null,null,null,null,null,{"$f":"G5+E6-F6","v":100}]
[null,null,null,null,null,null,100]
[null,null,null,null,null,null,100]
[null,null,null,null,null,null,100]
[null,null,null,null,null,null,100]
[null,null,null,null,null,null,100]
[null,null,null,null,null,null,100]
[null,null,null,null,null,null,100]
[null,null,null,null,null,null,100]
[null,null,null,null,null,null,100]
[null,null,null,null,null,null,100]
[null,null,null,null,null,null,100]
[null,null,null,null,null,null,100]
[null,null,null,null,null,null,100]
[null,null,null,null,null,null,100]
[null,null,null,null,null,null,100]
[null,null,null,null,null,null,100]
[null,null,null,null,null,null,100]
[null,null,null,null,null,null,100]
[null,null,null,null,null,null,100]
[null,null,null,null,null,null,100]
[null,null,null,null,null,null,100]
[null,null,null,null,null,null,100]
[null,null,null,null,null,null,100]
[null,null,null,null,null,null,100]
[null,null,null,null,null,null,100]
[null,null,null,null,null,null,100]
[null,null,null,null,null,null,100]
[null,null,null,null,null,null,100]
[null,null,null,null,null,null,100]
[null,null,null,null,null,null,100]
[null,null,null,null,null,null,100]
[null,null,null,null,null,null,100]
[null,null,null,null,null,null,100]
[null,null,null,null,null,null,100]
[null,null,null,null,null,null,100]
[null,null,null,null,null,null,100]
[null,null,null,null,null,null,100]
[null,null,null,null,null,null,100]
[null,null,null,null,null,null,100]
[null,null,null,null,null,null,100]
[null,null,null,null,null,null,100]
[null,null,null,null,null,null,100]
[null,null,null,null,null,null,100]
[null,null,null,null,null,null,100]
[null,null,null,null,null,null,100]
[null,null,null,null,null,null,100]
[null,null,null,null,null,null,100]
[null,null,null,null,null,null,100]
[null,null,null,null,null,null,100]
[null,null,null,null,null,null,100]
[null,null,null,null,null,null,100]
[null,null,null,null,null,null,100]
[null,null,null,null,null,null,100]
[null,null,null,null,null,null,100]
[null,null,null,null,null,null,100]
[null,null,null,null,null,null,100]
[null,null,null,null,null,null,100]
[null,null,null,null,null,null,100]
[null,null,null,null,null,null,100]
[null,null,null,null,null,null,100]
[null,null,null,null,null,null,100]
[null,null,null,null,null,null,100]
[null,null,null,null,null,null,100]
[null,null,null,null,null,null,{"$f":"G69+E70-F70","v":100}]
[null,null,null,null,null,null,100]
[null,null,null,null,null,null,100]
[null,null,null,null,null,null,100]
[null,null,null,null,null,null,100]
[null,null,null,null,null,null,100]
[null,null,null,null,null,null,100]
[null,null,null,null,null,null,100]
[null,null,null,null,null,null,100]
[null,null,null,null,null,null,100]
[null,null,null,null,null,null,100]
[null,null,null,null,null,null,100]
[null,null,null,null,null,null,100]
[null,null,null,null,null,null,100]
[null,null,null,null,null,null,100]
[null,null,null,null,null,null,100]
[null,null,null,null,null,null,100]
[null,null,null,null,null,null,100]
[null,null,null,null,null,null,100]
[null,null,null,null,null,null,100]
[null,null,null,null,null,null,100]
[null,null,null,null,null,null,100]
[null,null,null,null,null,null,100]
[null,null,null,null,null,null,100]
[null,null,null,null,null,null,100]
[null,null,null,null,null,null,100]
[null,null,null,null,null,null,100]
[null,null,null,null,null,null,100]
[null,null,null,null,null,null,100]
[null,null,null,null,null,null,100]
[null,null,null,null,null,null,100]
[null,null,null,null,null,null,100]
[null,null,null,null,null,null,100]
[null,null,null,null,null,null,100]
[null,null,null,null,null,null,100]
[null,null,null,null,null,null,100]
[null,null,null,null,null,null,100]
[null,null,null,null,null,null,100]
[null,null,null,null,null,null,100]
[null,null,null,null,null,null,100]
[null,null,null,null,null,null,100]
[null,null,null,null,null,null,100]
[null,null,null,null,null,null,100]
[null,null,null,null,null,null,100]
[null,null,null,null,null,null,100]
[null,null,null,null,null,null,100]
[null,null,null,null,null,null,100]
[null,null,null,null,null,null,100]
[null,null,null,null,null,null,100]
[null,null,null,null,null,null,100]
[null,null,null,null,null,null,100]
[null,null,null,null,null,null,100]
[null,null,null,null,null,null,100]
[null,null,null,null,null,null,100]
[null,null,null,null,null,null,100]
[null,null,null,null,null,null,100]
[null,null,null,null,null,null,100]
[null,null,null,null,null,null,100]
[null,null,null,null,null,null,100]
[null,null,null,null,null,null,100]
[null,null,null,null,null,null,100]
[null,null,null,null,null,null,100]
[null,null,null,null,null,null,100]
[null,null,null,null,null,null,100]
[null,null,null,null,null,null,{"$f":"G133+E134-F134","v":100}]
[null,null,null,null,null,null,100]
[null,null,null,null,null,null,100]
[null,null,null,null,null,null,100]
[null,null,null,null,null,null,100]
[null,"Saldo",null,null,null,null,100]

{"sheet":"Juni","index":5,"n_rows":139,"n_cols":7,"rows_kept":139,"cut":false,"hidden":false,"merged":[]}
[{"$f":"Januar!A1","v":"Kundenname"},null,null,null,null,null,"Fiechter Treuhand AG"]
["Kassabuch  ",null,null,null,null,null,"Juni"]
["Datum","Bezeichnung","Konto","MWST","Einnahmen","Ausgaben","Saldo"]
[null,"Saldovortrag",null,null,null,null,{"$f":"Mai!G139","v":100}]
[null,null,null,null,null,null,{"$f":"G4+E5-F5","v":100}]
[null,null,null,null,null,null,{"$f":"G5+E6-F6","v":100}]
[null,null,null,null,null,null,100]
[null,null,null,null,null,null,100]
[null,null,null,null,null,null,100]
[null,null,null,null,null,null,100]
[null,null,null,null,null,null,100]
[null,null,null,null,null,null,100]
[null,null,null,null,null,null,100]
[null,null,null,null,null,null,100]
[null,null,null,null,null,null,100]
[null,null,null,null,null,null,100]
[null,null,null,null,null,null,100]
[null,null,null,null,null,null,100]
[null,null,null,null,null,null,100]
[null,null,null,null,null,null,100]
[null,null,null,null,null,null,100]
[null,null,null,null,null,null,100]
[null,null,null,null,null,null,100]
[null,null,null,null,null,null,100]
[null,null,null,null,null,null,100]
[null,null,null,null,null,null,100]
[null,null,null,null,null,null,100]
[null,null,null,null,null,null,100]
[null,null,null,null,null,null,100]
[null,null,null,null,null,null,100]
[null,null,null,null,null,null,100]
[null,null,null,null,null,null,100]
[null,null,null,null,null,null,100]
[null,null,null,null,null,null,100]
[null,null,null,null,null,null,100]
[null,null,null,null,null,null,100]
[null,null,null,null,null,null,100]
[null,null,null,null,null,null,100]
[null,null,null,null,null,null,100]
[null,null,null,null,null,null,100]
[null,null,null,null,null,null,100]
[null,null,null,null,null,null,100]
[null,null,null,null,null,null,100]
[null,null,null,null,null,null,100]
[null,null,null,null,null,null,100]
[null,null,null,null,null,null,100]
[null,null,null,null,null,null,100]
[null,null,null,null,null,null,100]
[null,null,null,null,null,null,100]
[null,null,null,null,null,null,100]
[null,null,null,null,null,null,100]
[null,null,null,null,null,null,100]
[null,null,null,null,null,null,100]
[null,null,null,null,null,null,100]
[null,null,null,null,null,null,100]
[null,null,null,null,null,null,100]
[null,null,null,null,null,null,100]
[null,null,null,null,null,null,100]
[null,null,null,null,null,null,100]
[null,null,null,null,null,null,100]
[null,null,null,null,null,null,100]
[null,null,null,null,null,null,100]
[null,null,null,null,null,null,100]
[null,null,null,null,null,null,100]
[null,null,null,null,null,null,100]
[null,null,null,null,null,null,100]
[null,null,null,null,null,null,100]
[null,null,null,null,null,null,100]
[null,null,null,null,null,null,100]
[null,null,null,null,null,null,{"$f":"G69+E70-F70","v":100}]
[null,null,null,null,null,null,100]
[null,null,null,null,null,null,100]
[null,null,null,null,null,null,100]
[null,null,null,null,null,null,100]
[null,null,null,null,null,null,100]
[null,null,null,null,null,null,100]
[null,null,null,null,null,null,100]
[null,null,null,null,null,null,100]
[null,null,null,null,null,null,100]
[null,null,null,null,null,null,100]
[null,null,null,null,null,null,100]
[null,null,null,null,null,null,100]
[null,null,null,null,null,null,100]
[null,null,null,null,null,null,100]
[null,null,null,null,null,null,100]
[null,null,null,null,null,null,100]
[null,null,null,null,null,null,100]
[null,null,null,null,null,null,100]
[null,null,null,null,null,null,100]
[null,null,null,null,null,null,100]
[null,null,null,null,null,null,100]
[null,null,null,null,null,null,100]
[null,null,null,null,null,null,100]
[null,null,null,null,null,null,100]
[null,null,null,null,null,null,100]
[null,null,null,null,null,null,100]
[null,null,null,null,null,null,100]
[null,null,null,null,null,null,100]
[null,null,null,null,null,null,100]
[null,null,null,null,null,null,100]
[null,null,null,null,null,null,100]
[null,null,null,null,null,null,100]
[null,null,null,null,null,null,100]
[null,null,null,null,null,null,100]
[null,null,null,null,null,null,100]
[null,null,null,null,null,null,100]
[null,null,null,null,null,null,100]
[null,null,null,null,null,null,100]
[null,null,null,null,null,null,100]
[null,null,null,null,null,null,100]
[null,null,null,null,null,null,100]
[null,null,null,null,null,null,100]
[null,null,null,null,null,null,100]
[null,null,null,null,null,null,100]
[null,null,null,null,null,null,100]
[null,null,null,null,null,null,100]
[null,null,null,null,null,null,100]
[null,null,null,null,null,null,100]
[null,null,null,null,null,null,100]
[null,null,null,null,null,null,100]
[null,null,null,null,null,null,100]
[null,null,null,null,null,null,100]
[null,null,null,null,null,null,100]
[null,null,null,null,null,null,100]
[null,null,null,null,null,null,100]
[null,null,null,null,null,null,100]
[null,null,null,null,null,null,100]
[null,null,null,null,null,null,100]
[null,null,null,null,null,null,100]
[null,null,null,null,null,null,100]
[null,null,null,null,null,null,100]
[null,null,null,null,null,null,100]
[null,null,null,null,null,null,100]
[null,null,null,null,null,null,{"$f":"G133+E134-F134","v":100}]
[null,null,null,null,null,null,100]
[null,null,null,null,null,null,100]
[null,null,null,null,null,null,100]
[null,null,null,null,null,null,100]
[null,"Saldo",null,null,null,null,100]

{"sheet":"Juli","index":6,"n_rows":139,"n_cols":7,"rows_kept":139,"cut":false,"hidden":false,"merged":[]}
[{"$f":"Januar!A1","v":"Kundenname"},null,null,null,null,null,"Fiechter Treuhand AG"]
["Kassabuch  ",null,null,null,null,null,"Juli"]
["Datum","Bezeichnung","Konto","MWST","Einnahmen","Ausgaben","Saldo"]
[null,"Saldovortrag",null,null,null,null,{"$f":"Juni!G139","v":100}]
[null,null,null,null,null,null,{"$f":"G4+E5-F5","v":100}]
[null,null,null,null,null,null,{"$f":"G5+E6-F6","v":100}]
[null,null,null,null,null,null,100]
[null,null,null,null,null,null,100]
[null,null,null,null,null,null,100]
[null,null,null,null,null,null,100]
[null,null,null,null,null,null,100]
[null,null,null,null,null,null,100]
[null,null,null,null,null,null,100]
[null,null,null,null,null,null,100]
[null,null,null,null,null,null,100]
[null,null,null,null,null,null,100]
[null,null,null,null,null,null,100]
[null,null,null,null,null,null,100]
[null,null,null,null,null,null,100]
[null,null,null,null,null,null,100]
[null,null,null,null,null,null,100]
[null,null,null,null,null,null,100]
[null,null,null,null,null,null,100]
[null,null,null,null,null,null,100]
[null,null,null,null,null,null,100]
[null,null,null,null,null,null,100]
[null,null,null,null,null,null,100]
[null,null,null,null,null,null,100]
[null,null,null,null,null,null,100]
[null,null,null,null,null,null,100]
[null,null,null,null,null,null,100]
[null,null,null,null,null,null,100]
[null,null,null,null,null,null,100]
[null,null,null,null,null,null,100]
[null,null,null,null,null,null,100]
[null,null,null,null,null,null,100]
[null,null,null,null,null,null,100]
[null,null,null,null,null,null,100]
[null,null,null,null,null,null,100]
[null,null,null,null,null,null,100]
[null,null,null,null,null,null,100]
[null,null,null,null,null,null,100]
[null,null,null,null,null,null,100]
[null,null,null,null,null,null,100]
[null,null,null,null,null,null,100]
[null,null,null,null,null,null,100]
[null,null,null,null,null,null,100]
[null,null,null,null,null,null,100]
[null,null,null,null,null,null,100]
[null,null,null,null,null,null,100]
[null,null,null,null,null,null,100]
[null,null,null,null,null,null,100]
[null,null,null,null,null,null,100]
[null,null,null,null,null,null,100]
[null,null,null,null,null,null,100]
[null,null,null,null,null,null,100]
[null,null,null,null,null,null,100]
[null,null,null,null,null,null,100]
[null,null,null,null,null,null,100]
[null,null,null,null,null,null,100]
[null,null,null,null,null,null,100]
[null,null,null,null,null,null,100]
[null,null,null,null,null,null,100]
[null,null,null,null,null,null,100]
[null,null,null,null,null,null,100]
[null,null,null,null,null,null,100]
[null,null,null,null,null,null,100]
[null,null,null,null,null,null,100]
[null,null,null,null,null,null,100]
[null,null,null,null,null,null,{"$f":"G69+E70-F70","v":100}]
[null,null,null,null,null,null,100]
[null,null,null,null,null,null,100]
[null,null,null,null,null,null,100]
[null,null,null,null,null,null,100]
[null,null,null,null,null,null,100]
[null,null,null,null,null,null,100]
[null,null,null,null,null,null,100]
[null,null,null,null,null,null,100]
[null,null,null,null,null,null,100]
[null,null,null,null,null,null,100]
[null,null,null,null,null,null,100]
[null,null,null,null,null,null,100]
[null,null,null,null,null,null,100]
[null,null,null,null,null,null,100]
[null,null,null,null,null,null,100]
[null,null,null,null,null,null,100]
[null,null,null,null,null,null,100]
[null,null,null,null,null,null,100]
[null,null,null,null,null,null,100]
[null,null,null,null,null,null,100]
[null,null,null,null,null,null,100]
[null,null,null,null,null,null,100]
[null,null,null,null,null,null,100]
[null,null,null,null,null,null,100]
[null,null,null,null,null,null,100]
[null,null,null,null,null,null,100]
[null,null,null,null,null,null,100]
[null,null,null,null,null,null,100]
[null,null,null,null,null,null,100]
[null,null,null,null,null,null,100]
[null,null,null,null,null,null,100]
[null,null,null,null,null,null,100]
[null,null,null,null,null,null,100]
[null,null,null,null,null,null,100]
[null,null,null,null,null,null,100]
[null,null,null,null,null,null,100]
[null,null,null,null,null,null,100]
[null,null,null,null,null,null,100]
[null,null,null,null,null,null,100]
[null,null,null,null,null,null,100]
[null,null,null,null,null,null,100]
[null,null,null,null,null,null,100]
[null,null,null,null,null,null,100]
[null,null,null,null,null,null,100]
[null,null,null,null,null,null,100]
[null,null,null,null,null,null,100]
[null,null,null,null,null,null,100]
[null,null,null,null,null,null,100]
[null,null,null,null,null,null,100]
[null,null,null,null,null,null,100]
[null,null,null,null,null,null,100]
[null,null,null,null,null,null,100]
[null,null,null,null,null,null,100]
[null,null,null,null,null,null,100]
[null,null,null,null,null,null,100]
[null,null,null,null,null,null,100]
[null,null,null,null,null,null,100]
[null,null,null,null,null,null,100]
[null,null,null,null,null,null,100]
[null,null,null,null,null,null,100]
[null,null,null,null,null,null,100]
[null,null,null,null,null,null,100]
[null,null,null,null,null,null,100]
[null,null,null,null,null,null,{"$f":"G133+E134-F134","v":100}]
[null,null,null,null,null,null,100]
[null,null,null,null,null,null,100]
[null,null,null,null,null,null,100]
[null,null,null,null,null,null,100]
[null,"Saldo",null,null,null,null,100]

{"sheet":"August","index":7,"n_rows":139,"n_cols":7,"rows_kept":139,"cut":false,"hidden":false,"merged":[]}
[{"$f":"Januar!A1","v":"Kundenname"},null,null,null,null,null,"Fiechter Treuhand AG"]
["Kassabuch  ",null,null,null,null,null,"August"]
["Datum","Bezeichnung","Konto","MWST","Einnahmen","Ausgaben","Saldo"]
[null,"Saldovortrag",null,null,null,null,{"$f":"Juli!G139","v":100}]
[null,null,null,null,null,null,{"$f":"G4+E5-F5","v":100}]
[null,null,null,null,null,null,{"$f":"G5+E6-F6","v":100}]
[null,null,null,null,null,null,100]
[null,null,null,null,null,null,100]
[null,null,null,null,null,null,100]
[null,null,null,null,null,null,100]
[null,null,null,null,null,null,100]
[null,null,null,null,null,null,100]
[null,null,null,null,null,null,100]
[null,null,null,null,null,null,100]
[null,null,null,null,null,null,100]
[null,null,null,null,null,null,100]
[null,null,null,null,null,null,100]
[null,null,null,null,null,null,100]
[null,null,null,null,null,null,100]
[null,null,null,null,null,null,100]
[null,null,null,null,null,null,100]
[null,null,null,null,null,null,100]
[null,null,null,null,null,null,100]
[null,null,null,null,null,null,100]
[null,null,null,null,null,null,100]
[null,null,null,null,null,null,100]
[null,null,null,null,null,null,100]
[null,null,null,null,null,null,100]
[null,null,null,null,null,null,100]
[null,null,null,null,null,null,100]
[null,null,null,null,null,null,100]
[null,null,null,null,null,null,100]
[null,null,null,null,null,null,100]
[null,null,null,null,null,null,100]
[null,null,null,null,null,null,100]
[null,null,null,null,null,null,100]
[null,null,null,null,null,null,100]
[null,null,null,null,null,null,100]
[null,null,null,null,null,null,100]
[null,null,null,null,null,null,100]
[null,null,null,null,null,null,100]
[null,null,null,null,null,null,100]
[null,null,null,null,null,null,100]
[null,null,null,null,null,null,100]
[null,null,null,null,null,null,100]
[null,null,null,null,null,null,100]
[null,null,null,null,null,null,100]
[null,null,null,null,null,null,100]
[null,null,null,null,null,null,100]
[null,null,null,null,null,null,100]
[null,null,null,null,null,null,100]
[null,null,null,null,null,null,100]
[null,null,null,null,null,null,100]
[null,null,null,null,null,null,100]
[null,null,null,null,null,null,100]
[null,null,null,null,null,null,100]
[null,null,null,null,null,null,100]
[null,null,null,null,null,null,100]
[null,null,null,null,null,null,100]
[null,null,null,null,null,null,100]
[null,null,null,null,null,null,100]
[null,null,null,null,null,null,100]
[null,null,null,null,null,null,100]
[null,null,null,null,null,null,100]
[null,null,null,null,null,null,100]
[null,null,null,null,null,null,100]
[null,null,null,null,null,null,100]
[null,null,null,null,null,null,100]
[null,null,null,null,null,null,100]
[null,null,null,null,null,null,{"$f":"G69+E70-F70","v":100}]
[null,null,null,null,null,null,100]
[null,null,null,null,null,null,100]
[null,null,null,null,null,null,100]
[null,null,null,null,null,null,100]
[null,null,null,null,null,null,100]
[null,null,null,null,null,null,100]
[null,null,null,null,null,null,100]
[null,null,null,null,null,null,100]
[null,null,null,null,null,null,100]
[null,null,null,null,null,null,100]
[null,null,null,null,null,null,100]
[null,null,null,null,null,null,100]
[null,null,null,null,null,null,100]
[null,null,null,null,null,null,100]
[null,null,null,null,null,null,100]
[null,null,null,null,null,null,100]
[null,null,null,null,null,null,100]
[null,null,null,null,null,null,100]
[null,null,null,null,null,null,100]
[null,null,null,null,null,null,100]
[null,null,null,null,null,null,100]
[null,null,null,null,null,null,100]
[null,null,null,null,null,null,100]
[null,null,null,null,null,null,100]
[null,null,null,null,null,null,100]
[null,null,null,null,null,null,100]
[null,null,null,null,null,null,100]
[null,null,null,null,null,null,100]
[null,null,null,null,null,null,100]
[null,null,null,null,null,null,100]
[null,null,null,null,null,null,100]
[null,null,null,null,null,null,100]
[null,null,null,null,null,null,100]
[null,null,null,null,null,null,100]
[null,null,null,null,null,null,100]
[null,null,null,null,null,null,100]
[null,null,null,null,null,null,100]
[null,null,null,null,null,null,100]
[null,null,null,null,null,null,100]
[null,null,null,null,null,null,100]
[null,null,null,null,null,null,100]
[null,null,null,null,null,null,100]
[null,null,null,null,null,null,100]
[null,null,null,null,null,null,100]
[null,null,null,null,null,null,100]
[null,null,null,null,null,null,100]
[null,null,null,null,null,null,100]
[null,null,null,null,null,null,100]
[null,null,null,null,null,null,100]
[null,null,null,null,null,null,100]
[null,null,null,null,null,null,100]
[null,null,null,null,null,null,100]
[null,null,null,null,null,null,100]
[null,null,null,null,null,null,100]
[null,null,null,null,null,null,100]
[null,null,null,null,null,null,100]
[null,null,null,null,null,null,100]
[null,null,null,null,null,null,100]
[null,null,null,null,null,null,100]
[null,null,null,null,null,null,100]
[null,null,null,null,null,null,100]
[null,null,null,null,null,null,100]
[null,null,null,null,null,null,100]
[null,null,null,null,null,null,{"$f":"G133+E134-F134","v":100}]
[null,null,null,null,null,null,100]
[null,null,null,null,null,null,100]
[null,null,null,null,null,null,100]
[null,null,null,null,null,null,100]
[null,"Saldo",null,null,null,null,100]

{"sheet":"September","index":8,"n_rows":139,"n_cols":7,"rows_kept":139,"cut":false,"hidden":false,"merged":[]}
[{"$f":"Januar!A1","v":"Kundenname"},null,null,null,null,null,"Fiechter Treuhand AG"]
["Kassabuch  ",null,null,null,null,null,"September"]
["Datum","Bezeichnung","Konto","MWST","Einnahmen","Ausgaben","Saldo"]
[null,"Saldovortrag",null,null,null,null,{"$f":"August!G139","v":100}]
[null,null,null,null,null,null,{"$f":"G4+E5-F5","v":100}]
[null,null,null,null,null,null,{"$f":"G5+E6-F6","v":100}]
[null,null,null,null,null,null,100]
[null,null,null,null,null,null,100]
[null,null,null,null,null,null,100]
[null,null,null,null,null,null,100]
[null,null,null,null,null,null,100]
[null,null,null,null,null,null,100]
[null,null,null,null,null,null,100]
[null,null,null,null,null,null,100]
[null,null,null,null,null,null,100]
[null,null,null,null,null,null,100]
[null,null,null,null,null,null,100]
[null,null,null,null,null,null,100]
[null,null,null,null,null,null,100]
[null,null,null,null,null,null,100]
[null,null,null,null,null,null,100]
[null,null,null,null,null,null,100]
[null,null,null,null,null,null,100]
[null,null,null,null,null,null,100]
[null,null,null,null,null,null,100]
[null,null,null,null,null,null,100]
[null,null,null,null,null,null,100]
[null,null,null,null,null,null,100]
[null,null,null,null,null,null,100]
[null,null,null,null,null,null,100]
[null,null,null,null,null,null,100]
[null,null,null,null,null,null,100]
[null,null,null,null,null,null,100]
[null,null,null,null,null,null,100]
[null,null,null,null,null,null,100]
[null,null,null,null,null,null,100]
[null,null,null,null,null,null,100]
[null,null,null,null,null,null,100]
[null,null,null,null,null,null,100]
[null,null,null,null,null,null,100]
[null,null,null,null,null,null,100]
[null,null,null,null,null,null,100]
[null,null,null,null,null,null,100]
[null,null,null,null,null,null,100]
[null,null,null,null,null,null,100]
[null,null,null,null,null,null,100]
[null,null,null,null,null,null,100]
[null,null,null,null,null,null,100]
[null,null,null,null,null,null,100]
[null,null,null,null,null,null,100]
[null,null,null,null,null,null,100]
[null,null,null,null,null,null,100]
[null,null,null,null,null,null,100]
[null,null,null,null,null,null,100]
[null,null,null,null,null,null,100]
[null,null,null,null,null,null,100]
[null,null,null,null,null,null,100]
[null,null,null,null,null,null,100]
[null,null,null,null,null,null,100]
[null,null,null,null,null,null,100]
[null,null,null,null,null,null,100]
[null,null,null,null,null,null,100]
[null,null,null,null,null,null,100]
[null,null,null,null,null,null,100]
[null,null,null,null,null,null,100]
[null,null,null,null,null,null,100]
[null,null,null,null,null,null,100]
[null,null,null,null,null,null,100]
[null,null,null,null,null,null,100]
[null,null,null,null,null,null,{"$f":"G69+E70-F70","v":100}]
[null,null,null,null,null,null,100]
[null,null,null,null,null,null,100]
[null,null,null,null,null,null,100]
[null,null,null,null,null,null,100]
[null,null,null,null,null,null,100]
[null,null,null,null,null,null,100]
[null,null,null,null,null,null,100]
[null,null,null,null,null,null,100]
[null,null,null,null,null,null,100]
[null,null,null,null,null,null,100]
[null,null,null,null,null,null,100]
[null,null,null,null,null,null,100]
[null,null,null,null,null,null,100]
[null,null,null,null,null,null,100]
[null,null,null,null,null,null,100]
[null,null,null,null,null,null,100]
[null,null,null,null,null,null,100]
[null,null,null,null,null,null,100]
[null,null,null,null,null,null,100]
[null,null,null,null,null,null,100]
[null,null,null,null,null,null,100]
[null,null,null,null,null,null,100]
[null,null,null,null,null,null,100]
[null,null,null,null,null,null,100]
[null,null,null,null,null,null,100]
[null,null,null,null,null,null,100]
[null,null,null,null,null,null,100]
[null,null,null,null,null,null,100]
[null,null,null,null,null,null,100]
[null,null,null,null,null,null,100]
[null,null,null,null,null,null,100]
[null,null,null,null,null,null,100]
[null,null,null,null,null,null,100]
[null,null,null,null,null,null,100]
[null,null,null,null,null,null,100]
[null,null,null,null,null,null,100]
[null,null,null,null,null,null,100]
[null,null,null,null,null,null,100]
[null,null,null,null,null,null,100]
[null,null,null,null,null,null,100]
[null,null,null,null,null,null,100]
[null,null,null,null,null,null,100]
[null,null,null,null,null,null,100]
[null,null,null,null,null,null,100]
[null,null,null,null,null,null,100]
[null,null,null,null,null,null,100]
[null,null,null,null,null,null,100]
[null,null,null,null,null,null,100]
[null,null,null,null,null,null,100]
[null,null,null,null,null,null,100]
[null,null,null,null,null,null,100]
[null,null,null,null,null,null,100]
[null,null,null,null,null,null,100]
[null,null,null,null,null,null,100]
[null,null,null,null,null,null,100]
[null,null,null,null,null,null,100]
[null,null,null,null,null,null,100]
[null,null,null,null,null,null,100]
[null,null,null,null,null,null,100]
[null,null,null,null,null,null,100]
[null,null,null,null,null,null,100]
[null,null,null,null,null,null,100]
[null,null,null,null,null,null,100]
[null,null,null,null,null,null,{"$f":"G133+E134-F134","v":100}]
[null,null,null,null,null,null,100]
[null,null,null,null,null,null,100]
[null,null,null,null,null,null,100]
[null,null,null,null,null,null,100]
[null,"Saldo",null,null,null,null,100]

{"sheet":"Oktober","index":9,"n_rows":139,"n_cols":7,"rows_kept":139,"cut":false,"hidden":false,"merged":[]}
[{"$f":"Januar!A1","v":"Kundenname"},null,null,null,null,null,"Fiechter Treuhand AG"]
["Kassabuch  ",null,null,null,null,null,"Oktober"]
["Datum","Bezeichnung","Konto","MWST","Einnahmen","Ausgaben","Saldo"]
[null,"Saldovortrag",null,null,null,null,{"$f":"September!G139","v":100}]
[null,null,null,null,null,null,{"$f":"G4+E5-F5","v":100}]
[null,null,null,null,null,null,{"$f":"G5+E6-F6","v":100}]
[null,null,null,null,null,null,100]
[null,null,null,null,null,null,100]
[null,null,null,null,null,null,100]
[null,null,null,null,null,null,100]
[null,null,null,null,null,null,100]
[null,null,null,null,null,null,100]
[null,null,null,null,null,null,100]
[null,null,null,null,null,null,100]
[null,null,null,null,null,null,100]
[null,null,null,null,null,null,100]
[null,null,null,null,null,null,100]
[null,null,null,null,null,null,100]
[null,null,null,null,null,null,100]
[null,null,null,null,null,null,100]
[null,null,null,null,null,null,100]
[null,null,null,null,null,null,100]
[null,null,null,null,null,null,100]
[null,null,null,null,null,null,100]
[null,null,null,null,null,null,100]
[null,null,null,null,null,null,100]
[null,null,null,null,null,null,100]
[null,null,null,null,null,null,100]
[null,null,null,null,null,null,100]
[null,null,null,null,null,null,100]
[null,null,null,null,null,null,100]
[null,null,null,null,null,null,100]
[null,null,null,null,null,null,100]
[null,null,null,null,null,null,100]
[null,null,null,null,null,null,100]
[null,null,null,null,null,null,100]
[null,null,null,null,null,null,100]
[null,null,null,null,null,null,100]
[null,null,null,null,null,null,100]
[null,null,null,null,null,null,100]
[null,null,null,null,null,null,100]
[null,null,null,null,null,null,100]
[null,null,null,null,null,null,100]
[null,null,null,null,null,null,100]
[null,null,null,null,null,null,100]
[null,null,null,null,null,null,100]
[null,null,null,null,null,null,100]
[null,null,null,null,null,null,100]
[null,null,null,null,null,null,100]
[null,null,null,null,null,null,100]
[null,null,null,null,null,null,100]
[null,null,null,null,null,null,100]
[null,null,null,null,null,null,100]
[null,null,null,null,null,null,100]
[null,null,null,null,null,null,100]
[null,null,null,null,null,null,100]
[null,null,null,null,null,null,100]
[null,null,null,null,null,null,100]
[null,null,null,null,null,null,100]
[null,null,null,null,null,null,100]
[null,null,null,null,null,null,100]
[null,null,null,null,null,null,100]
[null,null,null,null,null,null,100]
[null,null,null,null,null,null,100]
[null,null,null,null,null,null,100]
[null,null,null,null,null,null,100]
[null,null,null,null,null,null,100]
[null,null,null,null,null,null,100]
[null,null,null,null,null,null,100]
[null,null,null,null,null,null,{"$f":"G69+E70-F70","v":100}]
[null,null,null,null,null,null,100]
[null,null,null,null,null,null,100]
[null,null,null,null,null,null,100]
[null,null,null,null,null,null,100]
[null,null,null,null,null,null,100]
[null,null,null,null,null,null,100]
[null,null,null,null,null,null,100]
[null,null,null,null,null,null,100]
[null,null,null,null,null,null,100]
[null,null,null,null,null,null,100]
[null,null,null,null,null,null,100]
[null,null,null,null,null,null,100]
[null,null,null,null,null,null,100]
[null,null,null,null,null,null,100]
[null,null,null,null,null,null,100]
[null,null,null,null,null,null,100]
[null,null,null,null,null,null,100]
[null,null,null,null,null,null,100]
[null,null,null,null,null,null,100]
[null,null,null,null,null,null,100]
[null,null,null,null,null,null,100]
[null,null,null,null,null,null,100]
[null,null,null,null,null,null,100]
[null,null,null,null,null,null,100]
[null,null,null,null,null,null,100]
[null,null,null,null,null,null,100]
[null,null,null,null,null,null,100]
[null,null,null,null,null,null,100]
[null,null,null,null,null,null,100]
[null,null,null,null,null,null,100]
[null,null,null,null,null,null,100]
[null,null,null,null,null,null,100]
[null,null,null,null,null,null,100]
[null,null,null,null,null,null,100]
[null,null,null,null,null,null,100]
[null,null,null,null,null,null,100]
[null,null,null,null,null,null,100]
[null,null,null,null,null,null,100]
[null,null,null,null,null,null,100]
[null,null,null,null,null,null,100]
[null,null,null,null,null,null,100]
[null,null,null,null,null,null,100]
[null,null,null,null,null,null,100]
[null,null,null,null,null,null,100]
[null,null,null,null,null,null,100]
[null,null,null,null,null,null,100]
[null,null,null,null,null,null,100]
[null,null,null,null,null,null,100]
[null,null,null,null,null,null,100]
[null,null,null,null,null,null,100]
[null,null,null,null,null,null,100]
[null,null,null,null,null,null,100]
[null,null,null,null,null,null,100]
[null,null,null,null,null,null,100]
[null,null,null,null,null,null,100]
[null,null,null,null,null,null,100]
[null,null,null,null,null,null,100]
[null,null,null,null,null,null,100]
[null,null,null,null,null,null,100]
[null,null,null,null,null,null,100]
[null,null,null,null,null,null,100]
[null,null,null,null,null,null,100]
[null,null,null,null,null,null,100]
[null,null,null,null,null,null,{"$f":"G133+E134-F134","v":100}]
[null,null,null,null,null,null,100]
[null,null,null,null,null,null,100]
[null,null,null,null,null,null,100]
[null,null,null,null,null,null,100]
[null,"Saldo",null,null,null,null,100]

{"sheet":"November","index":10,"n_rows":139,"n_cols":7,"rows_kept":139,"cut":false,"hidden":false,"merged":[]}
[{"$f":"Januar!A1","v":"Kundenname"},null,null,null,null,null,"Fiechter Treuhand AG"]
["Kassabuch  ",null,null,null,null,null,"November"]
["Datum","Bezeichnung","Konto","MWST","Einnahmen","Ausgaben","Saldo"]
[null,"Saldovortrag",null,null,null,null,{"$f":"Oktober!G139","v":100}]
[null,null,null,null,null,null,{"$f":"G4+E5-F5","v":100}]
[null,null,null,null,null,null,{"$f":"G5+E6-F6","v":100}]
[null,null,null,null,null,null,100]
[null,null,null,null,null,null,100]
[null,null,null,null,null,null,100]
[null,null,null,null,null,null,100]
[null,null,null,null,null,null,100]
[null,null,null,null,null,null,100]
[null,null,null,null,null,null,100]
[null,null,null,null,null,null,100]
[null,null,null,null,null,null,100]
[null,null,null,null,null,null,100]
[null,null,null,null,null,null,100]
[null,null,null,null,null,null,100]
[null,null,null,null,null,null,100]
[null,null,null,null,null,null,100]
[null,null,null,null,null,null,100]
[null,null,null,null,null,null,100]
[null,null,null,null,null,null,100]
[null,null,null,null,null,null,100]
[null,null,null,null,null,null,100]
[null,null,null,null,null,null,100]
[null,null,null,null,null,null,100]
[null,null,null,null,null,null,100]
[null,null,null,null,null,null,100]
[null,null,null,null,null,null,100]
[null,null,null,null,null,null,100]
[null,null,null,null,null,null,100]
[null,null,null,null,null,null,100]
[null,null,null,null,null,null,100]
[null,null,null,null,null,null,100]
[null,null,null,null,null,null,100]
[null,null,null,null,null,null,100]
[null,null,null,null,null,null,100]
[null,null,null,null,null,null,100]
[null,null,null,null,null,null,100]
[null,null,null,null,null,null,100]
[null,null,null,null,null,null,100]
[null,null,null,null,null,null,100]
[null,null,null,null,null,null,100]
[null,null,null,null,null,null,100]
[null,null,null,null,null,null,100]
[null,null,null,null,null,null,100]
[null,null,null,null,null,null,100]
[null,null,null,null,null,null,100]
[null,null,null,null,null,null,100]
[null,null,null,null,null,null,100]
[null,null,null,null,null,null,100]
[null,null,null,null,null,null,100]
[null,null,null,null,null,null,100]
[null,null,null,null,null,null,100]
[null,null,null,null,null,null,100]
[null,null,null,null,null,null,100]
[null,null,null,null,null,null,100]
[null,null,null,null,null,null,100]
[null,null,null,null,null,null,100]
[null,null,null,null,null,null,100]
[null,null,null,null,null,null,100]
[null,null,null,null,null,null,100]
[null,null,null,null,null,null,100]
[null,null,null,null,null,null,100]
[null,null,null,null,null,null,100]
[null,null,null,null,null,null,100]
[null,null,null,null,null,null,100]
[null,null,null,null,null,null,100]
[null,null,null,null,null,null,{"$f":"G69+E70-F70","v":100}]
[null,null,null,null,null,null,100]
[null,null,null,null,null,null,100]
[null,null,null,null,null,null,100]
[null,null,null,null,null,null,100]
[null,null,null,null,null,null,100]
[null,null,null,null,null,null,100]
[null,null,null,null,null,null,100]
[null,null,null,null,null,null,100]
[null,null,null,null,null,null,100]
[null,null,null,null,null,null,100]
[null,null,null,null,null,null,100]
[null,null,null,null,null,null,100]
[null,null,null,null,null,null,100]
[null,null,null,null,null,null,100]
[null,null,null,null,null,null,100]
[null,null,null,null,null,null,100]
[null,null,null,null,null,null,100]
[null,null,null,null,null,null,100]
[null,null,null,null,null,null,100]
[null,null,null,null,null,null,100]
[null,null,null,null,null,null,100]
[null,null,null,null,null,null,100]
[null,null,null,null,null,null,100]
[null,null,null,null,null,null,100]
[null,null,null,null,null,null,100]
[null,null,null,null,null,null,100]
[null,null,null,null,null,null,100]
[null,null,null,null,null,null,100]
[null,null,null,null,null,null,100]
[null,null,null,null,null,null,100]
[null,null,null,null,null,null,100]
[null,null,null,null,null,null,100]
[null,null,null,null,null,null,100]
[null,null,null,null,null,null,100]
[null,null,null,null,null,null,100]
[null,null,null,null,null,null,100]
[null,null,null,null,null,null,100]
[null,null,null,null,null,null,100]
[null,null,null,null,null,null,100]
[null,null,null,null,null,null,100]
[null,null,null,null,null,null,100]
[null,null,null,null,null,null,100]
[null,null,null,null,null,null,100]
[null,null,null,null,null,null,100]
[null,null,null,null,null,null,100]
[null,null,null,null,null,null,100]
[null,null,null,null,null,null,100]
[null,null,null,null,null,null,100]
[null,null,null,null,null,null,100]
[null,null,null,null,null,null,100]
[null,null,null,null,null,null,100]
[null,null,null,null,null,null,100]
[null,null,null,null,null,null,100]
[null,null,null,null,null,null,100]
[null,null,null,null,null,null,100]
[null,null,null,null,null,null,100]
[null,null,null,null,null,null,100]
[null,null,null,null,null,null,100]
[null,null,null,null,null,null,100]
[null,null,null,null,null,null,100]
[null,null,null,null,null,null,100]
[null,null,null,null,null,null,100]
[null,null,null,null,null,null,100]
[null,null,null,null,null,null,{"$f":"G133+E134-F134","v":100}]
[null,null,null,null,null,null,100]
[null,null,null,null,null,null,100]
[null,null,null,null,null,null,100]
[null,null,null,null,null,null,100]
[null,"Saldo",null,null,null,null,100]

{"sheet":"Dezember","index":11,"n_rows":139,"n_cols":7,"rows_kept":139,"cut":false,"hidden":false,"merged":[]}
[{"$f":"Januar!A1","v":"Kundenname"},null,null,null,null,null,"Fiechter Treuhand AG"]
["Kassabuch  ",null,null,null,null,null,"Dezember"]
["Datum","Bezeichnung","Konto","MWST","Einnahmen","Ausgaben","Saldo"]
[null,"Saldovortrag",null,null,null,null,{"$f":"November!G139","v":100}]
[null,null,null,null,null,null,{"$f":"G4+E5-F5","v":100}]
[null,null,null,null,null,null,{"$f":"G5+E6-F6","v":100}]
[null,null,null,null,null,null,100]
[null,null,null,null,null,null,100]
[null,null,null,null,null,null,100]
[null,null,null,null,null,null,100]
[null,null,null,null,null,null,100]
[null,null,null,null,null,null,100]
[null,null,null,null,null,null,100]
[null,null,null,null,null,null,100]
[null,null,null,null,null,null,100]
[null,null,null,null,null,null,100]
[null,null,null,null,null,null,100]
[null,null,null,null,null,null,100]
[null,null,null,null,null,null,100]
[null,null,null,null,null,null,100]
[null,null,null,null,null,null,100]
[null,null,null,null,null,null,100]
[null,null,null,null,null,null,100]
[null,null,null,null,null,null,100]
[null,null,null,null,null,null,100]
[null,null,null,null,null,null,100]
[null,null,null,null,null,null,100]
[null,null,null,null,null,null,100]
[null,null,null,null,null,null,100]
[null,null,null,null,null,null,100]
[null,null,null,null,null,null,100]
[null,null,null,null,null,null,100]
[null,null,null,null,null,null,100]
[null,null,null,null,null,null,100]
[null,null,null,null,null,null,100]
[null,null,null,null,null,null,100]
[null,null,null,null,null,null,100]
[null,null,null,null,null,null,100]
[null,null,null,null,null,null,100]
[null,null,null,null,null,null,100]
[null,null,null,null,null,null,100]
[null,null,null,null,null,null,100]
[null,null,null,null,null,null,100]
[null,null,null,null,null,null,100]
[null,null,null,null,null,null,100]
[null,null,null,null,null,null,100]
[null,null,null,null,null,null,100]
[null,null,null,null,null,null,100]
[null,null,null,null,null,null,100]
[null,null,null,null,null,null,100]
[null,null,null,null,null,null,100]
[null,null,null,null,null,null,100]
[null,null,null,null,null,null,100]
[null,null,null,null,null,null,100]
[null,null,null,null,null,null,100]
[null,null,null,null,null,null,100]
[null,null,null,null,null,null,100]
[null,null,null,null,null,null,100]
[null,null,null,null,null,null,100]
[null,null,null,null,null,null,100]
[null,null,null,null,null,null,100]
[null,null,null,null,null,null,100]
[null,null,null,null,null,null,100]
[null,null,null,null,null,null,100]
[null,null,null,null,null,null,100]
[null,null,null,null,null,null,100]
[null,null,null,null,null,null,100]
[null,null,null,null,null,null,100]
[null,null,null,null,null,null,100]
[null,null,null,null,null,null,{"$f":"G69+E70-F70","v":100}]
[null,null,null,null,null,null,100]
[null,null,null,null,null,null,100]
[null,null,null,null,null,null,100]
[null,null,null,null,null,null,100]
[null,null,null,null,null,null,100]
[null,null,null,null,null,null,100]
[null,null,null,null,null,null,100]
[null,null,null,null,null,null,100]
[null,null,null,null,null,null,100]
[null,null,null,null,null,null,100]
[null,null,null,null,null,null,100]
[null,null,null,null,null,null,100]
[null,null,null,null,null,null,100]
[null,null,null,null,null,null,100]
[null,null,null,null,null,null,100]
[null,null,null,null,null,null,100]
[null,null,null,null,null,null,100]
[null,null,null,null,null,null,100]
[null,null,null,null,null,null,100]
[null,null,null,null,null,null,100]
[null,null,null,null,null,null,100]
[null,null,null,null,null,null,100]
[null,null,null,null,null,null,100]
[null,null,null,null,null,null,100]
[null,null,null,null,null,null,100]
[null,null,null,null,null,null,100]
[null,null,null,null,null,null,100]
[null,null,null,null,null,null,100]
[null,null,null,null,null,null,100]
[null,null,null,null,null,null,100]
[null,null,null,null,null,null,100]
[null,null,null,null,null,null,100]
[null,null,null,null,null,null,100]
[null,null,null,null,null,null,100]
[null,null,null,null,null,null,100]
[null,null,null,null,null,null,100]
[null,null,null,null,null,null,100]
[null,null,null,null,null,null,100]
[null,null,null,null,null,null,100]
[null,null,null,null,null,null,100]
[null,null,null,null,null,null,100]
[null,null,null,null,null,null,100]
[null,null,null,null,null,null,100]
[null,null,null,null,null,null,100]
[null,null,null,null,null,null,100]
[null,null,null,null,null,null,100]
[null,null,null,null,null,null,100]
[null,null,null,null,null,null,100]
[null,null,null,null,null,null,100]
[null,null,null,null,null,null,100]
[null,null,null,null,null,null,100]
[null,null,null,null,null,null,100]
[null,null,null,null,null,null,100]
[null,null,null,null,null,null,100]
[null,null,null,null,null,null,100]
[null,null,null,null,null,null,100]
[null,null,null,null,null,null,100]
[null,null,null,null,null,null,100]
[null,null,null,null,null,null,100]
[null,null,null,null,null,null,100]
[null,null,null,null,null,null,100]
[null,null,null,null,null,null,100]
[null,null,null,null,null,null,100]
[null,null,null,null,null,null,{"$f":"G133+E134-F134","v":100}]
[null,null,null,null,null,null,100]
[null,null,null,null,null,null,100]
[null,null,null,null,null,null,100]
[null,null,null,null,null,null,100]
[null,"Saldo",null,null,null,null,100]